[Event "17th Prague Open 2018"]
[Site "Prague"]
[Date "2018.01.13"]
[Round "2"]
[White "Eriksson, Christian Altenburg"]
[Black "Thakur, Akash"]
[Result "0-1"]
[ECO "C44"]
[WhiteElo "2140"]
[BlackElo "2338"]
[Annotator "NA"]
[PlyCount "78"]
[EventDate "2018.??.??"]
[EventType "swiss"]
[EventCountry "CZE"]
[SourceTitle "playchess.com"]
[Source "ChessBase"]
[SourceQuality "1"]
[TimeControl "40/5400+30:1800+30"]

1. e4 {[%emt 0:00:00]} e5 {[%emt 0:02:09]} 2. Nf3 {[%emt 0:00:00]} Nc6 {[%emt 0:00:07]} 3. d4 {[%emt 0:00:00]} exd4 {[%emt 0:00:06]} 4. Nxd4 {[%emt 0:00:00]} Qf6 {[%emt 0:00:13]} 5. Nb3 {[%emt 0:00:59]} Qg6 {[%emt 0:04:33]} 6. Nc3 {[%emt 0:01:50]} Bb4 {[%emt 0:00:31]} 7. f3 {[%emt 0:01:12]} Bxc3+ {[%emt 0:04:12]} 8. bxc3 {[%emt 0:00:12]} Nge7 {[%emt 0:00:04]} 9. Bf4 {[%emt 0:05:58]} d6 {[%emt 0:00:14]} 10. Qd2 {[%emt 0:06:59]} f5 {[%emt 0:01:55]} 11. Bd3 {[%emt 0:08:58]} O-O {[%emt 0:16:08]} 12. Nd4 {[%emt 0:04:47]} fxe4 {[%emt 0:11:07]} 13. Bxe4 {[%emt 0:02:19]} Qf7 {[%emt 0:02:07]} 14. Bg3 {[%emt 0:05:20]} Nxd4 {[%emt 0:10:47]} 15. cxd4 {[%emt 0:03:22]} Bf5 {[%emt 0:03:38]} 16. O-O {[%emt 0:05:08]} Bxe4 {[%emt 0:08:00]} 17. fxe4 {[%emt 0:00:09]} Qc4 {[%emt 0:00:04]} 18. a3 {[%emt 0:11:50]} d5 {[%emt 0:08:39]} 19. Qd3 {[%emt 0:02:52]} Qc6 {[%emt 0:10:07]} 20. e5 {[%emt 0:06:02]} Qe6 {[%emt 0:04:47]} 21. Rab1 {[%emt 0:03:33]} b6 {[%emt 0:02:07]} 22. Rf2 {[%emt 0:04:56]} Rxf2 {[%emt 0:01:27]} 23. Bxf2 {[%emt 0:00:39]} Nc6 {[%emt 0:00:20]} 24. Be1 {[%emt 0:10:08]} Rf8 {[%emt 0:00:29]} 25. Bc3 {[%emt 0:03:07]} Qf5 {[%emt 0:02:17]} 26. Qxf5 {[%emt 0:02:16]} Rxf5 {[%emt 0:00:05]} 27. Re1 {[%emt 0:00:12]} Kf7 {[%emt 0:01:43]} 28. e6+ {[%emt 0:02:05]} Ke7 {[%emt 0:01:20]} 29. Bb4+ {[%emt 0:00:30]} Ke8 {[%emt 0:02:45]} 30. e7 {[%emt 0:03:21]} a5 {[%emt 0:01:19]} 31. Bd2 {[%emt 0:02:15]} Nxe7 {[%emt 0:00:26]} 32. g4 {[%emt 0:00:29]} Rf7 {[%emt 0:00:11]} 33. Kg2 {[%emt 0:01:09]} Kd7 {[%emt 0:00:06]} 34. Kg3 {[%emt 0:00:39]} Nc6 {[%emt 0:00:26]} 35. Bc3 {[%emt 0:01:44]} Na7 {[%emt 0:00:14]} 36. Re5 {[%emt 0:00:37]} Nb5 {[%emt 0:01:07]} 37. Bb2 {[%emt 0:01:16]} c6 {[%emt 0:00:10]} 38. a4 {[%emt 0:00:44]} Nd6 {[%emt 0:00:05]} 39. Ba3 {[%emt 0:00:30]} Nc4 {[%emt 0:00:42]} 0-1

[Event "17th Prague Open 2018"]
[Site "Prague"]
[Date "2018.01.13"]
[Round "2"]
[White "Balenovic, Zvonimir"]
[Black "Luukkonen, Tommi"]
[Result "0-1"]
[ECO "A04"]
[WhiteElo "2129"]
[BlackElo "2331"]
[Annotator "NA"]
[PlyCount "90"]
[EventDate "2018.??.??"]
[EventType "swiss"]
[EventCountry "CZE"]
[SourceTitle "playchess.com"]
[Source "ChessBase"]
[SourceQuality "1"]
[TimeControl "40/5400+30:1800+30"]

1. Nf3 {[%emt 0:00:00]} c5 {[%emt 0:01:31]} 2. g3 {[%emt 0:00:45]} g6 {[%emt 0:00:21]} 3. Bg2 {[%emt 0:00:44]} Bg7 {[%emt 0:00:05]} 4. c4 {[%emt 0:00:25]} Nc6 {[%emt 0:00:09]} 5. O-O {[%emt 0:00:15]} e6 {[%emt 0:00:36]} 6. Nc3 {[%emt 0:03:11]} Nge7 {[%emt 0:00:20]} 7. d3 {[%emt 0:00:39]} O-O {[%emt 0:00:54]} 8. e3 {[%emt 0:10:52] A37: Symmetrical English vs ...g6: 4 Bg2 Bg7 5 Nf3} (8. Bg5 h6 9. Bd2 b6 10. a3 Bb7 11. Rb1 a5 12. Nb5 d5 13. Qc1 Kh7 14. Rd1 Qd7 15. e3 Rac8 16. Qc2 e5 17. cxd5 Nxd5 {½-½ (85) Almasi,Z (2682)-Ponkratov,P (2613) Riadh 2017}) 8... d5 {[%emt 0:00:35]} 9. cxd5 {[%emt 0:00:22]} Nb4 $146 {[%emt 0:07:21]} ({Predecessor:} 9... exd5 10. e4 d4 11. Na4 b6 12. b3 Ba6 13. Bf4 h6 14. g4 g5 {0-1 (35) Vrtal,J (2093)-Fuskova,M (2063) Stare Mesto 2016}) 10. d4 {[%emt 0:07:53]} cxd4 {[%emt 0:01:04]} 11. Nxd4 {[%emt 0:02:09]} Nexd5 {[%emt 0:01:56]} 12. Nxd5 {[%emt 0:03:18]} Nxd5 {[%emt 0:00:12]} 13. Re1 {[%emt 0:02:10]} Qb6 {[%emt 0:01:07]} 14. b3 {[%emt 0:09:06]} Rd8 {[%emt 0:00:52]} 15. Bb2 {[%emt 0:06:09]} e5 {[%emt 0:05:01]} 16. Bxd5 {[%emt 0:03:52]} Rxd5 {[%emt 0:01:17]} 17. Qf3 {[%emt 0:00:11]} Qd8 {[%emt 0:00:25]} 18. e4 {[%emt 0:08:25]} Rxd4 {[%emt 0:00:33]} 19. Bxd4 {[%emt 0:00:07]} exd4 {[%emt 0:00:04]} 20. e5 Qb6 {[%emt 0:00:39]} 21. g4 {[%emt 0:04:07]} Be6 {[%emt 0:02:59]} 22. Rad1 {[%emt 0:00:38]} Rd8 {[%emt 0:02:42]} 23. Qf4 {[%emt 0:05:32]} Rd5 {[%emt 0:03:02]} 24. Qg3 {[%emt 0:08:29]} g5 {[%emt 0:02:47]} 25. Re4 {[%emt 0:01:39]} Qc5 {[%emt 0:02:42]} 26. Rde1 {[%emt 0:02:27]} d3 {[%emt 0:00:44]} 27. h3 {[%emt 0:01:37]} d2 {[%emt 0:03:58]} 28. Rd1 {[%emt 0:00:01]} Bxe5 {[%emt 0:02:30]} 29. Qf3 {[%emt 0:04:46]} Qd6 {[%emt 0:01:29]} 30. Qe3 {[%emt 0:02:23]} Bh2+ {[%emt 0:02:31]} 31. Kf1 {[%emt 0:02:37]} Qa6+ {[%emt 0:02:45]} 32. Qe2 {[%emt 0:03:30]} Qc6 {[%emt 0:01:00]} 33. f3 {[%emt 0:02:22]} Bf4 {[%emt 0:00:10]} 34. Kg2 {[%emt 0:00:49]} Qd6 {[%emt 0:00:48]} 35. Qf2 {[%emt 0:00:42]} Rd3 {[%emt 0:00:43]} 36. Qe2 {[%emt 0:01:55]} h5 {[%emt 0:03:04]} 37. gxh5 $19 {[%emt 0:01:42]} Bh2 {[%emt 0:03:48]} 38. Rxe6 {[%emt 0:01:03]} fxe6 {[%emt 0:00:41]} 39. Qe4 {[%emt 0:00:17]} Qg3+ {[%emt 0:03:09]} 40. Kh1 {[%emt 0:00:04]} Qxf3+ {[%emt 0:30:03]} 41. Qxf3 {[%emt 0:30:21]} Rxf3 {[%emt 0:00:02]} 42. Kxh2 {[%emt 0:00:39]} Rd3 {[%emt 0:00:05]} 43. Kg2 {[%emt 0:01:06]} Kh7 {[%emt 0:00:19]} 44. Kf1 {[%emt 0:00:58]} Kh6 {[%emt 0:00:15]} 45. Ke2 {[%emt 0:00:17]} Rd5 0-1

[Event "17th Prague Open 2018"]
[Site "Prague"]
[Date "2018.01.13"]
[Round "3"]
[White "Thakur, Akash"]
[Black "Stoyanov, Tsvetan"]
[Result "1/2-1/2"]
[ECO "C45"]
[WhiteElo "2338"]
[BlackElo "2242"]
[Annotator "NA"]
[PlyCount "45"]
[EventDate "2018.??.??"]
[EventType "swiss"]
[EventCountry "CZE"]
[SourceTitle "playchess.com"]
[Source "ChessBase"]
[SourceQuality "1"]
[TimeControl "40/5400+30:1800+30"]

1. e4 e5 2. Nf3 Nc6 3. d4 exd4 4. Nxd4 Bc5 5. Nxc6 Qf6 6. Qf3 dxc6 7. Qxf6 Nxf6 8. Bd3 Be6 9. O-O h6 10. Nc3 O-O-O 11. Bf4 Rhe8 12. Rad1 a6 13. h3 Bd4 14. a3 c5 15. Rfe1 Bxc3 16. bxc3 c4 17. Be2 Nxe4 18. Rxd8+ Kxd8 19. Be5 f6 20. Bh5 Re7 21. Bxc7+ Kxc7 22. Rxe4 Kd6 23. Rd4+ 1/2-1/2

[Event "17th Prague Open 2018"]
[Site "Prague"]
[Date "2018.01.13"]
[Round "3"]
[White "Kulkarni, Bhakti"]
[Black "Shevchenko, Danylo"]
[Result "1-0"]
[ECO "D07"]
[WhiteElo "2306"]
[BlackElo "2164"]
[Annotator "NA"]
[PlyCount "61"]
[EventDate "2018.??.??"]
[EventType "swiss"]
[EventCountry "CZE"]
[SourceTitle "playchess.com"]
[Source "ChessBase"]
[SourceQuality "1"]
[TimeControl "40/5400+30:1800+30"]

1. d4 {[%emt 0:00:00]} d5 {[%emt 0:00:03]} 2. c4 {[%emt 0:00:21]} Nc6 {[%emt 0:00:04]} 3. Nc3 {[%emt 0:00:45]} dxc4 {[%emt 0:00:08]} 4. d5 {[%emt 0:02:05]} Ne5 {[%emt 0:00:02]} 5. f4 {[%emt 0:00:21]} Ng4 {[%emt 0:00:24]} 6. e4 {[%emt 0:03:06]} e5 {[%emt 0:00:21]} 7. f5 {[%emt 0:05:57]} h5 {[%emt 0:02:59]} 8. Be2 {[%emt 0:22:39]} Bc5 {[%emt 0:11:46]} 9. Bxg4 {[%emt 0:00:30]} Qh4+ {[%emt 0:06:02]} 10. g3 {[%emt 0:00:15]} Qxg4 {[%emt 0:00:04]} 11. Qa4+ {[%emt 0:04:43]} Bd7 {[%emt 0:02:43]} 12. Qxc4 {[%emt 0:01:12]} Bb6 {[%emt 0:09:11]} 13. Qe2 {[%emt 0:04:06]} g6 {[%emt 0:19:08]} 14. fxg6 {[%emt 0:07:55]} fxg6 {[%emt 0:06:04]} 15. Nf3 {[%emt 0:01:36]} Bd4 {[%emt 0:00:26]} 16. Bg5 {[%emt 0:07:22]} Ne7 {[%emt 0:01:39]} 17. Nxd4 {[%emt 0:06:05]} Qxg5 {[%emt 0:08:50]} 18. Nf3 {[%emt 0:06:16]} Qf6 {[%emt 0:00:06]} 19. O-O {[%emt 0:01:08]} O-O-O {[%emt 0:03:34]} 20. Qe3 {[%emt 0:01:14]} Bh3 {[%emt 0:10:19]} 21. Rf2 {[%emt 0:01:34]} Rdf8 {[%emt 0:03:13]} 22. Qxa7 {[%emt 0:02:54]} g5 {[%emt 0:01:50]} 23. Na4 {[%emt 0:03:31]} Kd8 {[%emt 0:02:10]} 24. Rc1 {[%emt 0:00:46]} Nc8 {[%emt 0:02:22]} 25. Qxb7 {[%emt 0:00:33]} Rf7 {[%emt 0:00:56]} 26. Rc6 {[%emt 0:00:44]} Nd6 {[%emt 0:03:55]} 27. Qb8+ {[%emt 0:00:17]} Bc8 {[%emt 0:00:03]} 28. Nb6 {[%emt 0:06:28]} h4 {[%emt 0:02:45]} 29. Nxc8 {[%emt 0:00:48]} hxg3 {[%emt 0:00:37]} 30. Nxd6+ {[%emt 0:00:12]} Ke7 {[%emt 0:00:17]} 31. Rxc7+ {[%emt 0:00:08]} 1-0

[Event "17th Prague Open 2018"]
[Site "Prague"]
[Date "2018.01.13"]
[Round "3"]
[White "Wiley, Thomas"]
[Black "Mihajlov, Sebastian"]
[Result "0-1"]
[ECO "E46"]
[WhiteElo "2118"]
[BlackElo "2371"]
[Annotator "NA"]
[PlyCount "80"]
[EventDate "2018.??.??"]
[EventType "swiss"]
[EventCountry "CZE"]
[SourceTitle "playchess.com"]
[Source "ChessBase"]
[SourceQuality "1"]
[TimeControl "40/5400+30:1800+30"]

1. d4 {[%emt 0:00:00]} e6 {[%emt 0:07:47]} 2. c4 {[%emt 0:00:00]} Nf6 {[%emt 0:00:07]} 3. Nc3 {[%emt 0:00:00]} Bb4 {[%emt 0:00:06]} 4. e3 {[%emt 0:00:00]} O-O {[%emt 0:00:10]} 5. Nge2 {[%emt 0:00:03]} Re8 {[%emt 0:00:30]} 6. a3 {[%emt 0:00:11]} Bf8 {[%emt 0:00:09]} 7. d5 {[%emt 0:00:54]} a5 {[%emt 0:00:16]} 8. g3 {[%emt 0:00:51]} Na6 {[%emt 0:00:41]} 9. Bg2 {[%emt 0:05:25]} Nc5 {[%emt 0:02:44]} 10. b3 {[%emt 0:01:01]} d6 {[%emt 0:08:58]} 11. O-O {[%emt 0:02:18]} e5 {[%emt 0:03:29]} 12. e4 {[%emt 0:03:23]} c6 {[%emt 0:02:20]} 13. Rb1 {[%emt 0:03:58]} cxd5 {[%emt 0:02:03]} 14. cxd5 {[%emt 0:00:54]} Bd7 {[%emt 0:03:18]} 15. b4 {[%emt 0:01:09]} axb4 {[%emt 0:00:05]} 16. axb4 {[%emt 0:00:05]} Na4 {[%emt 0:00:05]} 17. Nxa4 {[%emt 0:00:29]} Bxa4 {[%emt 0:00:07]} 18. Qd3 {[%emt 0:00:27]} Qc7 {[%emt 0:05:34]} 19. Nc3 {[%emt 0:01:36]} Bd7 {[%emt 0:00:08]} 20. Bd2 {[%emt 0:07:16]} Rec8 {[%emt 0:00:59]} 21. Rfc1 {[%emt 0:02:27]} Ra3 {[%emt 0:19:17]} 22. Ra1 {[%emt 0:02:09]} Rxa1 {[%emt 0:00:05]} 23. Rxa1 {[%emt 0:00:04]} g6 {[%emt 0:00:05]} 24. Ra3 {[%emt 0:14:48]} h5 {[%emt 0:06:17]} 25. h3 {[%emt 0:04:05]} Be7 {[%emt 0:07:48]} 26. Be3 {[%emt 0:02:15]} h4 {[%emt 0:00:26]} 27. g4 {[%emt 0:00:36]} Nh7 {[%emt 0:01:00]} 28. Qd2 {[%emt 0:05:07]} Qd8 {[%emt 0:03:04]} 29. Ra7 {[%emt 0:00:46]} Rb8 {[%emt 0:00:04]} 30. Bf1 {[%emt 0:02:09]} Ng5 {[%emt 0:03:11]} 31. Kg2 {[%emt 0:00:30]} Nh7 {[%emt 0:02:02]} 32. Bb5 {[%emt 0:02:46]} Bxb5 {[%emt 0:01:18]} 33. Nxb5 {[%emt 0:00:06]} Qd7 {[%emt 0:00:02]} 34. Nc3 {[%emt 0:02:16]} f5 {[%emt 0:00:04]} 35. f3 {[%emt 0:01:30]} fxg4 {[%emt 0:00:45]} 36. hxg4 {[%emt 0:02:29]} Rf8 {[%emt 0:05:40]} 37. Ra1 {[%emt 0:03:18]} Qd8 {[%emt 0:01:32]} 38. Ne2 {[%emt 0:03:30]} h3+ {[%emt 0:00:28]} 39. Kf2 {[%emt 0:01:08]} Bh4+ {[%emt 0:02:40]} 40. Ng3 {[%emt 0:00:17]} Qd7 {[%emt 0:31:22]} 0-1

[Event "17th Prague Open 2018"]
[Site "Prague"]
[Date "2018.01.13"]
[Round "3"]
[White "Adamko, Peter"]
[Black "Kaasen, Tor Fredrik"]
[Result "1/2-1/2"]
[ECO "E17"]
[WhiteElo "2098"]
[BlackElo "2340"]
[Annotator "ChessBase"]
[PlyCount "95"]
[EventDate "2018.??.??"]
[EventType "swiss"]
[EventCountry "CZE"]
[SourceTitle "playchess.com"]
[Source "ChessBase"]
[SourceQuality "1"]
[TimeControl "40/5400+30:1800+30"]

1. d4 {[%emt 0:01:23]} Nf6 {[%emt 0:00:23]} 2. Nf3 {[%emt 0:00:27]} e6 {[%emt 0:00:15]} 3. c4 {[%emt 0:01:17]} b6 {[%emt 0:01:44]} 4. g3 {[%emt 0:02:46]} Bb7 {[%emt 0:00:21]} 5. Bg2 {[%emt 0:00:17]} Be7 {[%emt 0:00:05]} 6. Nc3 {[%emt 0:01:42]} Ne4 {[%emt 0:02:07]} 7. d5 {[%emt 0:04:57]} Nxc3 {[%emt 0:01:50]} 8. bxc3 {[%emt 0:02:15]} Bf6 {[%emt 0:00:27]} 9. Qd3 {[%emt 0:01:21]} e5 {[%emt 0:06:10]} 10. Nd2 {[%emt 0:10:50]} d6 {[%emt 0:01:34]} 11. Be4 {[%emt 0:05:44]} g6 {[%emt 0:01:33]} 12. h4 {[%emt 0:00:35]} Bg7 {[%emt 0:03:09]} 13. g4 {[%emt 0:04:25]} Qd7 {[%emt 0:00:48]} 14. g5 {[%emt 0:04:15]} h6 {[%emt 0:03:43]} 15. Rg1 {[%emt 0:14:24]} hxg5 {[%emt 0:00:50]} 16. hxg5 {[%emt 0:00:05]} Na6 {[%emt 0:01:16]} 17. Bf3 {[%emt 0:10:09]} Nc5 {[%emt 0:01:11]} 18. Qc2 {[%emt 0:02:45]} Rh4 {[%emt 0:01:24]} 19. e4 {[%emt 0:06:37]} Qa4 {[%emt 0:02:30]} 20. Bd1 {[%emt 0:03:48]} Qd7 {[%emt 0:06:09]} 21. Ba3 {[%emt 0:00:44]} Ke7 {[%emt 0:03:08]} 22. Bxc5 {[%emt 0:00:55]} dxc5 {[%emt 0:01:18]} 23. Be2 {[%emt 0:02:01]} Rah8 {[%emt 0:01:24]} 24. Nf3 {[%emt 0:00:42]} Rf4 {[%emt 0:02:02]} 25. O-O-O {[%emt 0:04:15]} Ba6 {[%emt 0:02:09]} 26. Rg3 {[%emt 0:00:16]} Rh3 {[%emt 0:09:29]} 27. Rxh3 {[%emt 0:00:41]} Qxh3 {[%emt 0:00:03]} 28. Qd3 {[%emt 0:00:16]} Kd6 {[%emt 0:00:38]} 29. Rg1 {[%emt 0:04:40]} Qd7 {[%emt 0:02:10]} 30. Rg3 {[%emt 0:02:05]} Qa4 {[%emt 0:02:40]} 31. Kb2 {[%emt 0:00:08]} Bc8 {[%emt 0:02:12]} 32. Bd1 {[%emt 0:00:56]} Qe8 {[%emt 0:01:30]} 33. Bc2 {[%emt 0:00:58]} a6 {[%emt 0:00:53]} 34. Qe3 {[%emt 0:00:31]} Qh8 {[%emt 0:04:04]} 35. a3 {[%emt 0:00:57]} Qh1 {[%emt 0:00:42]} 36. Ne1 {[%emt 0:00:26]} Rh4 {[%emt 0:03:06]} 37. f3 {[%emt 0:00:28]} Qh2 {[%emt 0:02:37]} 38. Rg2 {[%emt 0:00:39]} Qf4 {[%emt 0:00:06]} 39. Qe2 {[%emt 0:00:31]} Rh5 {[%emt 0:01:51]} 40. Nd3 {[%emt 0:01:05]} Qh4 {[%emt 0:30:12]} 41. f4 {[%emt 0:34:18]} exf4 {[%emt 0:05:39]} 42. e5+ {[%emt 0:00:11]} Ke7 {[%emt 0:00:15]} 43. e6 {[%emt 0:00:00]} fxe6 {[%emt 0:00:00]} 44. Ne5 {[%emt 0:00:00]} Qh3 {[%emt 0:00:00]} 45. Nf3 {[%emt 0:00:00]} Kd6 {[%emt 0:02:12]} 46. Bxg6 {[%emt 0:00:00]} Rh8 {[%emt 0:00:11]} 47. Rh2 {[%emt 0:00:00]} Qg4 48. Rg2 1/2-1/2

[Event "17th Prague Open 2018"]
[Site "Prague"]
[Date "2018.01.13"]
[Round "3"]
[White "Parnali, S Dharia"]
[Black "Liu, Yi"]
[Result "1/2-1/2"]
[ECO "E04"]
[WhiteElo "2082"]
[BlackElo "2337"]
[Annotator "NA"]
[PlyCount "29"]
[EventDate "2018.??.??"]
[EventType "swiss"]
[EventCountry "CZE"]
[SourceTitle "playchess.com"]
[Source "ChessBase"]
[SourceQuality "1"]
[TimeControl "40/5400+30:1800+30"]

1. d4 {[%emt 0:00:00]} d5 {[%emt 0:09:52]} 2. c4 {[%emt 0:00:00]} e6 {[%emt 0:00:04]} 3. Nf3 {[%emt 0:00:00]} Nf6 {[%emt 0:00:49]} 4. g3 {[%emt 0:00:07]} dxc4 {[%emt 0:00:09]} 5. Bg2 {[%emt 0:00:14]} a6 {[%emt 0:00:39]} 6. a4 {[%emt 0:01:43]} Nc6 {[%emt 0:05:53]} 7. O-O {[%emt 0:00:48]} Rb8 {[%emt 0:00:29]} 8. Nc3 {[%emt 0:02:26]} b5 {[%emt 0:08:03]} 9. axb5 {[%emt 0:01:37]} axb5 {[%emt 0:00:04]} 10. Ne5 {[%emt 0:06:15]} Nxe5 {[%emt 0:12:01]} 11. dxe5 {[%emt 0:00:09]} Nd5 {[%emt 0:13:28]} 12. Nxd5 {[%emt 0:03:23]} exd5 {[%emt 0:00:03]} 13. Qxd5 {[%emt 0:04:58]} Qxd5 {[%emt 0:02:37]} 14. Bxd5 {[%emt 0:00:07]} Bc5 {[%emt 0:01:39]} 15. Be3 {[%emt 0:07:09]} 1/2-1/2

[Event "17th Prague Open 2018"]
[Site "Prague"]
[Date "2018.01.13"]
[Round "3"]
[White "Goh, Philip"]
[Black "Schippers, Maurice"]
[Result "0-1"]
[ECO "A05"]
[WhiteElo "1910"]
[BlackElo "2309"]
[Annotator "NA"]
[PlyCount "82"]
[EventDate "2018.??.??"]
[EventType "swiss"]
[EventCountry "CZE"]
[SourceTitle "playchess.com"]
[Source "ChessBase"]
[SourceQuality "1"]
[TimeControl "40/5400+30:1800+30"]

1. Nf3 {[%emt 0:01:17]} Nf6 {[%emt 0:00:11]} 2. g3 {[%emt 0:00:21]} g6 {[%emt 0:00:26]} 3. Bg2 {[%emt 0:00:20]} Bg7 {[%emt 0:00:04]} 4. O-O {[%emt 0:00:39]} O-O {[%emt 0:00:04]} 5. d3 {[%emt 0:01:24]} c5 {[%emt 0:02:27]} 6. Nbd2 {[%emt 0:00:52]} Nc6 {[%emt 0:00:30]} 7. e4 {[%emt 0:03:45]} d6 {[%emt 0:00:58]} 8. a4 {[%emt 0:01:52]} Rb8 {[%emt 0:06:47]} 9. Nc4 {[%emt 0:04:34]} a6 {[%emt 0:04:56]} 10. Bd2 {[%emt 0:03:22]} Be6 {[%emt 0:03:29]} 11. Ne3 {[%emt 0:08:35]} b5 {[%emt 0:10:04]} 12. Ng5 {[%emt 0:05:16]} Bd7 {[%emt 0:00:24]} 13. axb5 {[%emt 0:03:53]} axb5 {[%emt 0:00:17]} 14. c3 {[%emt 0:03:59]} b4 {[%emt 0:04:19]} 15. f4 {[%emt 0:02:45]} bxc3 {[%emt 0:03:12]} 16. bxc3 {[%emt 0:00:10]} Na5 {[%emt 0:03:55]} 17. Rb1 {[%emt 0:02:27]} h6 {[%emt 0:01:37]} 18. Nf3 {[%emt 0:00:46]} Ng4 {[%emt 0:10:27]} 19. Nxg4 {[%emt 0:04:35]} Bxg4 {[%emt 0:00:24]} 20. Qa4 {[%emt 0:01:33]} Qc7 {[%emt 0:01:52]} 21. h3 {[%emt 0:05:56]} Bd7 {[%emt 0:01:15]} 22. Qc2 {[%emt 0:01:10]} c4 {[%emt 0:01:42]} 23. d4 {[%emt 0:01:04]} Nb3 {[%emt 0:01:53]} 24. Be3 {[%emt 0:01:04]} Qa5 {[%emt 0:06:32]} 25. g4 {[%emt 0:05:12]} Ba4 {[%emt 0:00:57]} 26. Qb2 {[%emt 0:03:30]} Nxd4 {[%emt 0:04:02]} 27. Qxb8 {[%emt 0:00:11]} Nxf3+ {[%emt 0:00:51]} 28. Bxf3 {[%emt 0:00:20]} Rxb8 {[%emt 0:00:15]} 29. Rxb8+ {[%emt 0:00:09]} Kh7 {[%emt 0:00:14]} 30. Rb4 {[%emt 0:10:22]} Bb3 {[%emt 0:01:26]} 31. Bd2 {[%emt 0:02:18]} Qa2 {[%emt 0:01:44]} 32. Be1 {[%emt 0:03:22]} Qc2 {[%emt 0:04:24]} 33. Rb7 {[%emt 0:02:46]} Bxc3 {[%emt 0:01:06]} 34. Bxc3 {[%emt 0:01:31]} Qxc3 {[%emt 0:00:20]} 35. Rxe7 {[%emt 0:00:29]} Qe3+ {[%emt 0:00:36]} 36. Kh1 {[%emt 0:02:20]} c3 {[%emt 0:00:45]} 37. e5 {[%emt 0:01:19]} dxe5 {[%emt 0:02:10]} 38. Rxe5 {[%emt 0:01:57]} Qxf4 {[%emt 0:01:55]} 39. Rc5 {[%emt 0:01:06]} Bc4 {[%emt 0:02:30]} 40. Be2 {[%emt 0:04:04]} Qe4+ {[%emt 0:30:10]} 41. Bf3 {[%emt 0:30:22]} Qd4 {[%emt 0:00:41]} 0-1

[Event "17th Prague Open 2018"]
[Site "Prague"]
[Date "2018.01.14"]
[Round "4"]
[White "Moehn, Hans"]
[Black "Makoveev, Ilya"]
[Result "1/2-1/2"]
[ECO "A05"]
[WhiteElo "2378"]
[BlackElo "2196"]
[Annotator "ChessBase"]
[PlyCount "63"]
[EventDate "2018.??.??"]
[EventType "swiss"]
[EventCountry "CZE"]
[SourceTitle "playchess.com"]
[Source "ChessBase"]
[SourceQuality "1"]
[TimeControl "40/5400+30:1800+30"]

1. Nf3 {[%emt 0:02:03]} Nf6 {[%emt 0:00:33]} 2. c4 {[%emt 0:00:09]} g6 {[%emt 0:00:27]} 3. Nc3 {[%emt 0:00:06]} d5 {[%emt 0:00:28]} 4. cxd5 {[%emt 0:00:06]} Nxd5 {[%emt 0:00:04]} 5. e4 {[%emt 0:00:06]} Nxc3 {[%emt 0:00:14]} 6. dxc3 {[%emt 0:00:05]} Qxd1+ {[%emt 0:00:22]} 7. Kxd1 {[%emt 0:00:05]} f6 {[%emt 0:06:04]} 8. Be3 {[%emt 0:00:07]} e5 {[%emt 0:00:46]} 9. Nd2 {[%emt 0:00:06]} Be6 {[%emt 0:03:44]} 10. Bc4 {[%emt 0:00:09]} Kf7 {[%emt 0:00:36]} 11. Kc2 {[%emt 0:00:06]} Nd7 {[%emt 0:12:26]} 12. Rhd1 {[%emt 0:00:40]} a5 {[%emt 0:03:54]} 13. f3 {[%emt 0:07:51]} a4 {[%emt 0:21:40]} 14. b4 {[%emt 0:01:39]} axb3+ {[%emt 0:01:55]} 15. axb3 {[%emt 0:00:09]} Bc5 {[%emt 0:00:29]} 16. Bxc5 {[%emt 0:02:23]} Nxc5 {[%emt 0:00:02]} 17. b4 {[%emt 0:00:41]} Nd7 {[%emt 0:03:17]} 18. Nb3 {[%emt 0:22:03]} Ke7 {[%emt 0:03:17]} 19. Bxe6 {[%emt 0:00:33]} Kxe6 {[%emt 0:00:01]} 20. Ra5 {[%emt 0:00:49]} b6 {[%emt 0:13:41]} 21. Rad5 {[%emt 0:00:19]} Rhd8 {[%emt 0:00:38]} 22. Kb2 {[%emt 0:32:30]} Ke7 {[%emt 0:01:04]} 23. Nd2 {[%emt 0:02:36]} Nf8 {[%emt 0:04:11]} 24. Nc4 {[%emt 0:00:24]} Ne6 {[%emt 0:00:07]} 25. Ne3 {[%emt 0:04:34]} c6 {[%emt 0:04:33]} 26. Rxd8 {[%emt 0:00:46]} Rxd8 {[%emt 0:00:19]} 27. Ra1 {[%emt 0:05:02]} Rd2+ {[%emt 0:03:23]} 28. Kb3 {[%emt 0:00:13]} b5 {[%emt 0:01:38]} 29. Ra7+ {[%emt 0:01:18]} Rd7 {[%emt 0:00:20]} 30. Ra6 {[%emt 0:02:59]} Rd3 {[%emt 0:03:08]} 31. Kc2 {[%emt 0:00:33]} Rd6 {[%emt 0:04:13]} 32. Ra7+ {[%emt 0:02:21]} 1/2-1/2

[Event "17th Prague Open 2018"]
[Site "Prague"]
[Date "2018.01.14"]
[Round "4"]
[White "Mihajlov, Sebastian"]
[Black "Lee, Jun Hyeok"]
[Result "1/2-1/2"]
[ECO "E91"]
[WhiteElo "2371"]
[BlackElo "2305"]
[Annotator "ChessBase"]
[PlyCount "45"]
[EventDate "2018.??.??"]
[EventType "swiss"]
[EventCountry "CZE"]
[SourceTitle "playchess.com"]
[Source "ChessBase"]
[SourceQuality "1"]
[TimeControl "40/5400+30:1800+30"]

1. d4 {[%emt 0:08:00]} g6 {[%emt 0:00:13]} 2. Nf3 {[%emt 0:00:10]} Bg7 {[%emt 0:00:11]} 3. c4 {[%emt 0:00:18]} d6 {[%emt 0:02:26]} 4. Nc3 {[%emt 0:00:12]} Nf6 {[%emt 0:03:08]} 5. e4 {[%emt 0:00:09]} O-O {[%emt 0:00:08]} 6. Be2 {[%emt 0:02:00]} Na6 {[%emt 0:06:43]} 7. O-O {[%emt 0:00:31]} e5 {[%emt 0:00:04]} 8. Be3 {[%emt 0:02:41]} c6 {[%emt 0:01:11]} 9. d5 {[%emt 0:14:34]} Ng4 {[%emt 0:00:26]} 10. Bg5 {[%emt 0:00:06]} f6 {[%emt 0:00:11]} 11. Bd2 {[%emt 0:03:40]} f5 {[%emt 0:03:33]} 12. exf5 {[%emt 0:00:10]} gxf5 {[%emt 0:00:13]} 13. Bg5 {[%emt 0:00:14]} Qc7 {[%emt 0:09:40]} 14. Qd2 {[%emt 0:06:24]} c5 {[%emt 0:06:08]} 15. Nb5 {[%emt 0:09:16]} Qd7 {[%emt 0:00:44]} 16. Bh4 {[%emt 0:01:06]} Nc7 {[%emt 0:13:22]} 17. Nxc7 {[%emt 0:06:33]} Qxc7 {[%emt 0:00:03]} 18. Ng5 {[%emt 0:00:06]} Qe7 {[%emt 0:04:19]} 19. f3 {[%emt 0:08:22]} Nh6 {[%emt 0:08:10]} 20. g3 {[%emt 0:03:00]} Bf6 {[%emt 0:01:24]} 21. Kh1 {[%emt 0:08:00]} Nf7 {[%emt 0:03:18]} 22. Nxf7 {[%emt 0:00:42]} Rxf7 {[%emt 0:02:11]} 23. Bxf6 {[%emt 0:01:27]} 1/2-1/2